[Event "GER-ch Rapid Women 2020"]
[Site "Plochingen"]
[Date "2020.09.20"]
[Round "8.5"]
[White "Zeller, Elisa"]
[Black "Birkholz, Olga"]
[Result "1-0"]
[ECO "B06"]
[WhiteElo "1969"]
[BlackElo "2018"]
[Annotator "ChessBase"]
[PlyCount "68"]
[EventDate "2020.09.19"]
[EventType "swiss"]
[EventCountry "GER"]
[SourceTitle "playchess.com"]
[Source "ChessBase"]
[SourceQuality "1"]
[TimeControl "900+10"]

1. e4 {[%emt 0:00:00]} d6 {[%emt 0:00:00]} 2. d4 {[%emt 0:00:00]} g6 {[%emt 0:00:00]} 3. Nf3 {[%emt 0:00:00]} Bg7 {[%emt 0:00:00]} 4. Bc4 {[%emt 0:00:06]} e6 {[%emt 0:00:00]} 5. O-O {[%emt 0:00:02]} Ne7 {[%emt 0:00:05]} 6. Nc3 {[%emt 0:00:09]} O-O {[%emt 0:00:05]} 7. Bg5 {[%emt 0:00:10]} h6 {[%emt 0:00:04]} 8. Bh4 {[%emt 0:00:07]} Nd7 {[%emt 0:00:17]} 9. Re1 {[%emt 0:00:27]} a6 {[%emt 0:01:15]} 10. a4 {[%emt 0:00:07]} Rb8 {[%emt 0:00:22]} 11. h3 {[%emt 0:00:33]} Qe8 {[%emt 0:00:34]} 12. Qd2 {[%emt 0:02:00]} g5 {[%emt 0:00:20]} 13. Bg3 {[%emt 0:00:02]} Ng6 {[%emt 0:00:01]} 14. e5 {[%emt 0:01:21]} d5 {[%emt 0:00:11]} 15. Bd3 {[%emt 0:00:03]} c5 {[%emt 0:03:54]} 16. dxc5 {[%emt 0:02:24]} Nxc5 {[%emt 0:00:07]} 17. Bf1 {[%emt 0:00:11]} b5 {[%emt 0:02:41]} 18. axb5 {[%emt 0:00:54]} axb5 {[%emt 0:00:01]} 19. b4 {[%emt 0:01:17]} Ne4 {[%emt 0:01:09]} 20. Nxe4 {[%emt 0:00:16]} dxe4 {[%emt 0:00:00]} 21. Rxe4 {[%emt 0:00:10]} Bb7 {[%emt 0:00:01]} 22. Re3 {[%emt 0:00:22]} Bxf3 {[%emt 0:01:14]} 23. gxf3 {[%emt 0:00:02]} Qc6 {[%emt 0:00:53]} 24. Ra5 {[%emt 0:02:04]} Rfc8 {[%emt 0:01:16]} 25. Bd3 {[%emt 0:01:29]} Nf4 {[%emt 0:01:50]} 26. Bxf4 {[%emt 0:00:17]} gxf4 {[%emt 0:00:01]} 27. Re4 {[%emt 0:00:07]} Kh8 {[%emt 0:02:14]} 28. Qxf4 {[%emt 0:00:25]} Rg8 {[%emt 0:00:01]} 29. Kh2 {[%emt 0:00:10]} Qb6 {[%emt 0:00:18]} 30. Re2 {[%emt 0:00:14]} Qc6 {[%emt 0:00:25]} 31. Qxf7 {[%emt 0:02:26]} Rbf8 {[%emt 0:00:07]} 32. Qh5 {[%emt 0:00:33]} Qxf3 {[%emt 0:00:41]} 33. Qxf3 {[%emt 0:00:04]} Rxf3 {[%emt 0:00:01]} 34. Rxb5 {[%emt 0:00:27]} Rf4 {[%emt 0:00:32]} 1-0

[Event "GER-ch Rapid Women 2020"]
[Site "Plochingen"]
[Date "2020.09.20"]
[Round "8.6"]
[White "Stangl, Anita"]
[Black "Kosovska, Olena"]
[Result "1-0"]
[ECO "C59"]
[WhiteElo "2005"]
[BlackElo "1881"]
[Annotator "NA"]
[PlyCount "91"]
[EventDate "2020.09.19"]
[EventType "swiss"]
[EventCountry "GER"]
[SourceTitle "playchess.com"]
[Source "ChessBase"]
[SourceQuality "1"]
[TimeControl "900+10"]

1. e4 {[%emt 0:00:00]} e5 {[%emt 0:00:00]} 2. Nf3 {[%emt 0:00:00]} Nc6 {[%emt 0:00:00]} 3. Bc4 {[%emt 0:00:00]} Nf6 {[%emt 0:00:00]} 4. Ng5 {[%emt 0:00:00]} d5 {[%emt 0:00:00]} 5. exd5 {[%emt 0:00:00]} Na5 {[%emt 0:00:01]} 6. Bb5+ {[%emt 0:00:01]} c6 {[%emt 0:00:00]} 7. dxc6 {[%emt 0:00:01]} bxc6 {[%emt 0:00:01]} 8. Be2 {[%emt 0:00:24]} h6 {[%emt 0:00:08]} 9. Nf3 {[%emt 0:00:02]} e4 {[%emt 0:00:06]} 10. Ne5 {[%emt 0:00:10]} Bd6 {[%emt 0:00:12]} 11. d4 {[%emt 0:01:17]} exd3 {[%emt 0:01:13]} 12. Nxd3 {[%emt 0:00:04]} Qc7 {[%emt 0:00:10]} 13. h3 {[%emt 0:00:37]} O-O {[%emt 0:00:05]} 14. O-O {[%emt 0:00:08]} Rd8 {[%emt 0:00:41] C59: Two Knights: 4 Ng5 d5 5 exd5 Na5 5 Bb5+ c6 6 dxc6 bxc6 7 Be2.} 15. Bf3 {[%emt 0:00:53] [#]} Rb8 $146 {[%emt 0:00:42]} ({Predecessor:} 15... Nc4 16. Nd2 Ne5 17. Nxe5 Bxe5 18. Qe2 Rb8 19. Nc4 Bd4 20. c3 Re8 21. Qc2 Bc5 22. Be3 {½-½ (96) Szabo,B (2009)-Ladanyi,G (1972) Budapest 2005}) 16. Bd2 {[%emt 0:01:34]} Ba6 {[%emt 0:02:20]} 17. Bc3 {[%emt 0:00:57]} Nd5 {[%emt 0:00:41]} 18. Bxd5 {[%emt 0:00:10]} cxd5 {[%emt 0:00:08]} 19. Qg4 {[%emt 0:00:09]} f5 {[%emt 0:02:14]} 20. Qxf5 {[%emt 0:00:18]} Bb7 {[%emt 0:03:27]} (20... Nc4 $16) 21. Ne5 {[%emt 0:00:47]} Rf8 {[%emt 0:00:30]} 22. Qe6+ {[%emt 0:00:15]} Kh7 {[%emt 0:00:11]} 23. Nd7 $18 {[%emt 0:00:38]} (23. Bxa5 $142 Qxa5 24. Qxd6) 23... Nc4 {[%emt 0:03:22]} 24. b3 {[%emt 0:02:12]} Nb6 {[%emt 0:00:57]} 25. Nxb8 {[%emt 0:00:17]} Qxb8 {[%emt 0:00:09]} 26. Nd2 {[%emt 0:00:22]} Bc5 {[%emt 0:00:12]} 27. Nf3 {[%emt 0:00:20]} Qd8 {[%emt 0:00:25]} 28. Nd4 {[%emt 0:00:36]} Rf6 {[%emt 0:00:56]} 29. Qe2 {[%emt 0:00:23]} Rg6 {[%emt 0:00:05]} 30. Kh1 {[%emt 0:02:00]} Nd7 {[%emt 0:00:32]} 31. f4 {[%emt 0:00:32]} Ba6 {[%emt 0:00:12]} 32. Nb5 {[%emt 0:00:17]} d4 {[%emt 0:00:12]} 33. Bb2 {[%emt 0:00:15]} ({Not} 33. Bxd4 Bxd4 34. Rad1 Bb6 $14) 33... Qb6 {[%emt 0:00:09]} 34. a4 {[%emt 0:00:06]} Nf6 {[%emt 0:00:09]} 35. Qd3 {[%emt 0:00:14]} Nh5 {[%emt 0:00:10]} 36. g4 {[%emt 0:00:30]} Qc6+ {[%emt 0:00:16]} 37. Kh2 {[%emt 0:00:08]} Bb7 {[%emt 0:00:03]} 38. Qd2 {[%emt 0:01:56]} a6 {[%emt 0:00:06]} 39. Nxd4 {[%emt 0:00:12]} Bxd4 {[%emt 0:00:32]} 40. Bxd4 {[%emt 0:00:02]} Nf6 {[%emt 0:00:06]} 41. Bxf6 {[%emt 0:00:48]} Rxf6 {[%emt 0:00:02]} 42. Rf2 {[%emt 0:00:03]} Qc7 {[%emt 0:00:06]} 43. Rd1 {[%emt 0:00:10]} Rc6 {[%emt 0:00:14]} 44. Qd3+ {[%emt 0:00:04]} Kg8 {[%emt 0:00:09]} 45. Qd8+ {[%emt 0:00:01]} Kf7 {[%emt 0:00:10]} 46. Rd7+ {[%emt 0:00:02]} 1-0

[Event "GER-ch Rapid Women 2020"]
[Site "Plochingen"]
[Date "2020.09.20"]
[Round "9.2"]
[White "Skibbe, Diana"]
[Black "Muetsch, Annmarie"]
[Result "0-1"]
[ECO "B07"]
[WhiteElo "1991"]
[BlackElo "2226"]
[Annotator "ChessBase"]
[PlyCount "82"]
[EventDate "2020.09.19"]
[EventType "swiss"]
[EventCountry "GER"]
[SourceTitle "playchess.com"]
[Source "ChessBase"]
[SourceQuality "1"]
[TimeControl "900+10"]

1. e4 {[%emt 0:00:00]} d6 {[%emt 0:00:00]} 2. d4 {[%emt 0:00:00]} Nf6 {[%emt 0:00:00]} 3. Nc3 {[%emt 0:00:00]} e5 {[%emt 0:00:03]} 4. dxe5 {[%emt 0:00:05]} dxe5 {[%emt 0:00:01]} 5. Qxd8+ {[%emt 0:00:03]} Kxd8 {[%emt 0:00:01]} 6. Bc4 {[%emt 0:00:10]} Bb4 {[%emt 0:00:22]} 7. Bg5 {[%emt 0:00:50]} Ke7 {[%emt 0:00:10]} 8. Nf3 {[%emt 0:00:20]} Nbd7 {[%emt 0:00:10]} 9. O-O-O {[%emt 0:00:15]} c6 {[%emt 0:00:17]} 10. Ne2 {[%emt 0:00:34]} h6 {[%emt 0:01:04]} 11. Bxf6+ {[%emt 0:00:14]} Kxf6 {[%emt 0:00:33]} 12. Ng3 {[%emt 0:01:09]} g6 {[%emt 0:00:07]} 13. c3 {[%emt 0:00:12]} Bc5 {[%emt 0:00:14]} 14. Rhf1 {[%emt 0:01:03]} Nb6 {[%emt 0:00:51]} 15. Bb3 {[%emt 0:01:02]} Be6 {[%emt 0:01:02]} 16. Nh4 {[%emt 0:00:19]} Rad8 {[%emt 0:00:53]} 17. Rxd8 {[%emt 0:02:01]} Rxd8 {[%emt 0:00:02]} 18. Kc2 {[%emt 0:00:03]} Nc4 {[%emt 0:00:41]} 19. Nf3 {[%emt 0:00:16]} b5 {[%emt 0:00:48]} 20. a4 {[%emt 0:02:20]} a6 {[%emt 0:00:08]} 21. Ne2 {[%emt 0:00:13]} g5 {[%emt 0:00:49]} 22. h3 {[%emt 0:00:15]} Rb8 {[%emt 0:02:09]} 23. Ra1 {[%emt 0:02:19]} bxa4 {[%emt 0:00:15]} 24. Bxc4 {[%emt 0:00:20]} Bxc4 {[%emt 0:00:04]} 25. Nfg1 {[%emt 0:00:12]} Bb3+ {[%emt 0:00:08]} 26. Kd2 {[%emt 0:00:12]} h5 {[%emt 0:02:07]} 27. g3 {[%emt 0:00:32]} g4 {[%emt 0:00:09]} 28. f4 {[%emt 0:00:19]} Bf2 {[%emt 0:00:43]} 29. fxe5+ {[%emt 0:00:17]} Kxe5 {[%emt 0:00:05]} 30. Nf4 {[%emt 0:00:19]} Kxe4 {[%emt 0:00:40]} 31. Nxh5 {[%emt 0:00:29]} Be3+ {[%emt 0:00:08]} 32. Ke2 {[%emt 0:00:21]} Bc4+ {[%emt 0:00:04]} 33. Ke1 {[%emt 0:00:02]} Bxg1 {[%emt 0:00:13]} 34. Rxa4 {[%emt 0:00:06]} Rxb2 {[%emt 0:03:29]} 35. Rxc4+ {[%emt 0:01:10]} Kd3 {[%emt 0:00:02]} 36. Rb4 {[%emt 0:00:04]} Rxb4 {[%emt 0:00:03]} 37. cxb4 {[%emt 0:00:01]} gxh3 {[%emt 0:00:05]} 38. Nf4+ {[%emt 0:00:01]} Kc4 {[%emt 0:00:13]} 39. Nxh3 {[%emt 0:00:02]} Bd4 {[%emt 0:00:07]} 40. Ng5 {[%emt 0:00:18]} f6 {[%emt 0:00:07]} 41. Kd2 {[%emt 0:00:05]} fxg5 {[%emt 0:00:03]} 0-1

[Event "GER-ch Rapid Women 2020"]
[Site "Plochingen"]
[Date "2020.09.20"]
[Round "9.3"]
[White "Voicu-Jagodzinsky, Carmen"]
[Black "Osmanodja, Filiz"]
[Result "1-0"]
[ECO "A37"]
[WhiteElo "2247"]
[BlackElo "2256"]
[Annotator "ChessBase"]
[PlyCount "183"]
[EventDate "2020.09.19"]
[EventType "swiss"]
[EventCountry "GER"]
[SourceTitle "playchess.com"]
[Source "ChessBase"]
[SourceQuality "1"]
[TimeControl "900+10"]

1. Nf3 {[%emt 0:00:00]} c5 {[%emt 0:00:01]} 2. c4 {[%emt 0:00:00]} Nc6 {[%emt 0:00:03]} 3. g3 {[%emt 0:00:05]} g6 {[%emt 0:00:24]} 4. Bg2 {[%emt 0:00:28]} Bg7 {[%emt 0:00:02]} 5. Nc3 {[%emt 0:00:08]} e6 {[%emt 0:00:31]} 6. O-O {[%emt 0:02:06]} Nge7 {[%emt 0:00:11]} 7. e3 {[%emt 0:00:16]} d5 {[%emt 0:01:51]} 8. cxd5 {[%emt 0:00:37]} exd5 {[%emt 0:00:02]} 9. d4 {[%emt 0:00:02]} c4 {[%emt 0:01:52]} 10. b3 {[%emt 0:00:40]} cxb3 {[%emt 0:00:50]} 11. Qxb3 {[%emt 0:00:46]} O-O {[%emt 0:00:16]} 12. Ba3 {[%emt 0:00:32]} Re8 {[%emt 0:00:27]} 13. Rfc1 {[%emt 0:01:52]} a6 {[%emt 0:04:07]} 14. Bxe7 {[%emt 0:00:55]} Nxe7 {[%emt 0:00:07]} 15. Ne1 {[%emt 0:00:08]} Be6 {[%emt 0:00:59]} 16. Qxb7 {[%emt 0:00:40]} Qa5 {[%emt 0:02:05]} 17. Rab1 {[%emt 0:00:20]} Rac8 {[%emt 0:01:55]} 18. Qb6 {[%emt 0:01:33]} Qa3 {[%emt 0:00:34]} 19. Qb4 {[%emt 0:00:31]} Qxb4 {[%emt 0:00:02]} 20. Rxb4 {[%emt 0:00:01]} Rc6 {[%emt 0:00:41]} 21. Nd3 {[%emt 0:00:25]} Rec8 {[%emt 0:00:25]} 22. Nc5 {[%emt 0:00:07]} Bf8 {[%emt 0:00:36]} 23. N3a4 {[%emt 0:01:41]} Nf5 {[%emt 0:00:21]} 24. Rcb1 {[%emt 0:00:17]} Nd6 {[%emt 0:00:37]} 25. Rb6 {[%emt 0:00:26]} Nb5 {[%emt 0:00:00]} 26. Rxc6 {[%emt 0:00:48]} Rxc6 {[%emt 0:00:00]} 27. Bf1 {[%emt 0:00:02]} Na3 {[%emt 0:00:11]} 28. Rb6 {[%emt 0:00:27]} Rxb6 {[%emt 0:00:14]} 29. Nxb6 {[%emt 0:00:01]} a5 {[%emt 0:00:10]} 30. Bd3 {[%emt 0:00:42]} Bd6 {[%emt 0:00:11]} 31. Kf1 {[%emt 0:00:36]} Kf8 {[%emt 0:00:02]} 32. Ke2 {[%emt 0:00:03]} Bc7 {[%emt 0:00:19]} 33. Nba4 {[%emt 0:00:14]} Ke7 {[%emt 0:00:09]} 34. Kd2 {[%emt 0:00:31]} f5 {[%emt 0:00:06]} 35. Kc3 {[%emt 0:00:06]} Bf7 {[%emt 0:00:07]} 36. Nb2 {[%emt 0:00:19]} Be8 {[%emt 0:00:15]} 37. Ba6 {[%emt 0:00:40]} Nb5+ {[%emt 0:00:08]} 38. Kb3 {[%emt 0:00:27]} Nd6 {[%emt 0:00:06]} 39. Nbd3 {[%emt 0:00:14]} Ne4 {[%emt 0:00:14]} 40. Bb7 {[%emt 0:00:33]} Kd6 {[%emt 0:00:11]} 41. Ba6 {[%emt 0:00:52]} Nd2+ {[%emt 0:00:11]} 42. Kc2 {[%emt 0:00:04]} Nf3 {[%emt 0:00:07]} 43. h4 {[%emt 0:00:04]} h6 {[%emt 0:00:10]} 44. Nc1 {[%emt 0:00:20]} g5 {[%emt 0:00:10]} 45. hxg5 {[%emt 0:00:05]} hxg5 {[%emt 0:00:09]} 46. Be2 {[%emt 0:00:03]} Ng1 {[%emt 0:00:10]} 47. Bd3 {[%emt 0:00:10]} Nh3 {[%emt 0:00:15]} 48. f4 {[%emt 0:00:30]} Bg6 {[%emt 0:00:15]} 49. N1b3 {[%emt 0:00:30]} Nf2 {[%emt 0:00:04]} 50. Nb7+ {[%emt 0:00:01]} Ke7 {[%emt 0:00:10]} 51. N7xa5 {[%emt 0:00:02]} Kf6 {[%emt 0:00:10]} 52. Nc6 {[%emt 0:00:02]} Nh1 {[%emt 0:00:08]} 53. Ne5 {[%emt 0:00:07]} Nxg3 {[%emt 0:00:08]} 54. fxg5+ {[%emt 0:00:15]} Kxg5 {[%emt 0:00:02]} 55. a4 {[%emt 0:00:08]} Be8 {[%emt 0:00:24]} 56. a5 {[%emt 0:00:04]} Bb8 {[%emt 0:00:11]} 57. Nd2 {[%emt 0:00:16]} Ba4+ {[%emt 0:00:08]} 58. Kc3 {[%emt 0:00:04]} Ne4+ {[%emt 0:00:08]} 59. Nxe4+ {[%emt 0:00:09]} fxe4 {[%emt 0:00:02]} 60. Be2 {[%emt 0:00:15]} Kf6 {[%emt 0:00:16]} 61. Kb4 {[%emt 0:00:02]} Be8 {[%emt 0:00:07]} 62. Kc5 {[%emt 0:00:04]} Ke6 {[%emt 0:00:22]} 63. Bg4+ {[%emt 0:00:09]} Ke7 {[%emt 0:00:06]} 64. Kxd5 {[%emt 0:00:16]} Bb5 {[%emt 0:00:11]} 65. Kxe4 {[%emt 0:00:05]} Bc7 {[%emt 0:00:03]} 66. Kd5 {[%emt 0:00:23]} Bxa5 {[%emt 0:00:04]} 67. e4 {[%emt 0:00:11]} Bb6 {[%emt 0:00:10]} 68. Ng6+ {[%emt 0:00:22]} Kf7 {[%emt 0:00:13]} 69. Nf4 {[%emt 0:00:11]} Ke7 {[%emt 0:00:12]} 70. e5 {[%emt 0:00:03]} Ba4 {[%emt 0:00:08]} 71. Be2 {[%emt 0:00:09]} Bb3+ {[%emt 0:00:09]} 72. Bc4 {[%emt 0:00:03]} Bc2 {[%emt 0:00:13]} 73. Ne2 {[%emt 0:00:17]} Bd1 {[%emt 0:00:12]} 74. Ng1 {[%emt 0:00:32]} Bg4 {[%emt 0:00:15]} 75. Be2 {[%emt 0:00:01]} Bf5 {[%emt 0:00:11]} 76. Bf3 {[%emt 0:00:08]} Bc8 {[%emt 0:00:08]} 77. Ke4 {[%emt 0:00:01]} Bb7+ {[%emt 0:00:09]} 78. Ke3 {[%emt 0:00:01]} Ba6 {[%emt 0:00:07]} 79. Nh3 {[%emt 0:00:06]} Ke6 {[%emt 0:00:09]} 80. Nf4+ {[%emt 0:00:01]} Kd7 {[%emt 0:00:15]} 81. Bd5 {[%emt 0:00:11]} Bf1 {[%emt 0:00:10]} 82. Ke4 {[%emt 0:00:04]} Ba7 {[%emt 0:00:12]} 83. Be6+ {[%emt 0:00:04]} Ke7 {[%emt 0:00:09]} 84. d5 {[%emt 0:00:01]} Bc5 {[%emt 0:00:10]} 85. Ng6+ {[%emt 0:00:32]} Kd8 {[%emt 0:00:06]} 86. d6 {[%emt 0:00:05]} Bg2+ {[%emt 0:00:14]} 87. Kf5 {[%emt 0:00:07]} Bf1 {[%emt 0:00:12]} 88. Kf6 {[%emt 0:00:03]} Bf2 {[%emt 0:00:11]} 89. Nh8 {[%emt 0:00:05]} Bh4+ {[%emt 0:00:04]} 90. Kf7 {[%emt 0:00:30]} Bg3 {[%emt 0:00:10]} 91. Kf8 {[%emt 0:00:11]} Bxe5 {[%emt 0:00:16]} 92. Nf7# {[%emt 0:00:02]} 1-0

[Event "GER-ch Rapid Women 2020"]
[Site "Plochingen"]
[Date "2020.09.20"]
[Round "9.4"]
[White "Gheng, Simona"]
[Black "Frey, Alisa"]
[Result "1-0"]
[ECO "C87"]
[WhiteElo "2014"]
[BlackElo "2087"]
[Annotator "NA"]
[PlyCount "87"]
[EventDate "2020.09.19"]
[EventType "swiss"]
[EventCountry "GER"]
[SourceTitle "playchess.com"]
[Source "ChessBase"]
[SourceQuality "1"]
[TimeControl "900+10"]

1. e4 {[%emt 0:00:00]} e5 {[%emt 0:00:04]} 2. Nf3 {[%emt 0:00:00]} Nc6 {[%emt 0:00:01]} 3. Bb5 {[%emt 0:00:00]} a6 {[%emt 0:00:01]} 4. Ba4 {[%emt 0:00:00]} Nf6 {[%emt 0:00:02]} 5. d3 {[%emt 0:00:00]} Be7 {[%emt 0:00:14]} 6. c3 {[%emt 0:00:01]} d6 {[%emt 0:00:05]} 7. O-O {[%emt 0:00:03]} b5 {[%emt 0:00:09]} 8. Bc2 {[%emt 0:00:02]} Bg4 {[%emt 0:00:25]} 9. Re1 {[%emt 0:00:04]} O-O {[%emt 0:00:41]} 10. Nbd2 {[%emt 0:00:01]} Nb8 {[%emt 0:00:41]} 11. Nf1 {[%emt 0:00:03]} Nbd7 {[%emt 0:00:21]} 12. Ng3 {[%emt 0:00:02]} h6 {[%emt 0:00:22]} 13. h3 {[%emt 0:00:01]} Be6 {[%emt 0:00:02]} 14. Nf5 {[%emt 0:00:21]} Re8 {[%emt 0:00:25]} 15. Bb3 {[%emt 0:01:38]} Nh7 {[%emt 0:01:06]} 16. Bxe6 {[%emt 0:00:48]} fxe6 {[%emt 0:00:02]} 17. Nxe7+ {[%emt 0:00:02]} Qxe7 {[%emt 0:00:03]} 18. Nh2 {[%emt 0:00:35]} Rf8 {[%emt 0:00:21]} 19. Qg4 {[%emt 0:00:16]} Nc5 {[%emt 0:02:09]} 20. Re3 {[%emt 0:01:57]} Rf4 {[%emt 0:01:44]} 21. Qg6 {[%emt 0:00:42]} Rf6 {[%emt 0:00:05]} 22. Qg3 {[%emt 0:00:09]} Raf8 {[%emt 0:00:55]} 23. b4 {[%emt 0:00:14]} Nd7 {[%emt 0:00:02]} 24. Rf3 {[%emt 0:00:06]} Kh8 {[%emt 0:01:29]} 25. Be3 {[%emt 0:00:33]} Qe8 {[%emt 0:00:45]} 26. Rxf6 {[%emt 0:00:32]} Ndxf6 {[%emt 0:00:19]} 27. f3 {[%emt 0:00:33]} Nh5 {[%emt 0:00:14]} 28. Qe1 {[%emt 0:00:58]} Nf4 {[%emt 0:00:22]} 29. Bxf4 {[%emt 0:00:02]} exf4 {[%emt 0:00:06]} 30. Ng4 {[%emt 0:00:09]} Qg6 {[%emt 0:00:41]} 31. Qh4 {[%emt 0:00:50]} Ng5 {[%emt 0:00:41]} 32. Kh1 {[%emt 0:00:40]} Kg8 {[%emt 0:00:47]} 33. a4 {[%emt 0:00:12]} h5 {[%emt 0:01:15]} 34. Nf2 {[%emt 0:00:02]} Qf6 {[%emt 0:00:17]} 35. axb5 {[%emt 0:00:45]} axb5 {[%emt 0:00:14]} 36. Qxh5 {[%emt 0:01:43]} Qxc3 {[%emt 0:00:09]} 37. Rd1 {[%emt 0:00:07]} Qc2 {[%emt 0:02:00]} 38. Qxg5 {[%emt 0:00:11]} Qxf2 {[%emt 0:00:03]} 39. Qxb5 {[%emt 0:00:11]} Qe2 {[%emt 0:00:26]} 40. Rc1 {[%emt 0:00:05]} Ra8 {[%emt 0:00:30]} 41. Qc4 {[%emt 0:00:20]} Ra2 {[%emt 0:00:54]} 42. Qxe6+ {[%emt 0:00:03]} Kh8 {[%emt 0:00:08]} 43. Qg4 {[%emt 0:00:33]} Qxd3 {[%emt 0:00:27]} 44. Rxc7 {[%emt 0:00:38]} 1-0

[Event "GER-ch Rapid Women 2020"]
[Site "Plochingen"]
[Date "2020.09.20"]
[Round "9.5"]
[White "Papp, Sarah"]
[Black "Burchardt, Brigitte"]
[Result "1-0"]
[ECO "B20"]
[WhiteElo "2327"]
[BlackElo "2113"]
[Annotator "ChessBase"]
[PlyCount "75"]
[EventDate "2020.09.19"]
[EventType "swiss"]
[EventCountry "GER"]
[SourceTitle "playchess.com"]
[Source "ChessBase"]
[SourceQuality "1"]
[TimeControl "900+10"]

1. e4 {[%emt 0:00:00]} c5 {[%emt 0:00:00]} 2. d3 {[%emt 0:00:00]} Nc6 {[%emt 0:00:00]} 3. g3 {[%emt 0:00:00]} g6 {[%emt 0:00:00]} 4. Bg2 {[%emt 0:00:00]} Bg7 {[%emt 0:00:00]} 5. f4 {[%emt 0:00:00]} d6 {[%emt 0:00:04]} 6. Nf3 {[%emt 0:00:02]} e6 {[%emt 0:00:45]} 7. O-O {[%emt 0:00:04]} Nge7 {[%emt 0:00:01]} 8. c3 {[%emt 0:00:01]} O-O {[%emt 0:00:03]} 9. Be3 {[%emt 0:00:01]} b6 {[%emt 0:00:37]} 10. Bf2 {[%emt 0:00:04]} Bb7 {[%emt 0:00:20]} 11. Nbd2 {[%emt 0:00:06]} d5 {[%emt 0:00:23]} 12. e5 {[%emt 0:00:05]} Ba6 {[%emt 0:00:11]} 13. Nb3 {[%emt 0:00:20]} Rc8 {[%emt 0:00:41]} 14. Re1 {[%emt 0:00:15]} Qd7 {[%emt 0:02:00]} 15. Nc1 {[%emt 0:01:12]} Rfd8 {[%emt 0:00:20]} 16. g4 {[%emt 0:00:30]} Qc7 {[%emt 0:01:30]} 17. Ne2 {[%emt 0:00:19]} d4 {[%emt 0:01:53]} 18. c4 {[%emt 0:00:22]} Bb7 {[%emt 0:00:02]} 19. Ng3 {[%emt 0:00:52]} Nb8 {[%emt 0:00:01]} 20. Ne4 {[%emt 0:00:41]} Bxe4 {[%emt 0:00:11]} 21. Rxe4 {[%emt 0:00:02]} Nbc6 {[%emt 0:00:05]} 22. Bh4 {[%emt 0:00:36]} Re8 {[%emt 0:00:02]} 23. Bf6 {[%emt 0:02:37]} Rb8 {[%emt 0:00:23]} 24. a3 {[%emt 0:01:48]} b5 {[%emt 0:00:12]} 25. Nd2 {[%emt 0:01:11]} a6 {[%emt 0:00:50]} 26. Qe1 {[%emt 0:00:17]} Kh8 {[%emt 0:00:31]} 27. Qh4 {[%emt 0:00:22]} Ng8 {[%emt 0:00:02]} 28. Bxg7+ {[%emt 0:00:25]} Kxg7 {[%emt 0:00:02]} 29. Rf1 {[%emt 0:00:03]} f5 {[%emt 0:00:32]} 30. exf6+ {[%emt 0:00:17]} Nxf6 {[%emt 0:00:01]} 31. Re2 {[%emt 0:00:09]} bxc4 {[%emt 0:00:08]} 32. Nxc4 {[%emt 0:00:11]} Nd5 {[%emt 0:00:10]} 33. f5 {[%emt 0:00:32]} exf5 {[%emt 0:00:08]} 34. Rxe8 {[%emt 0:00:14]} Rxe8 {[%emt 0:00:04]} 35. Bxd5 {[%emt 0:00:07]} Ne5 {[%emt 0:00:21]} 36. gxf5 {[%emt 0:00:31]} Qd7 {[%emt 0:04:29]} 37. f6+ {[%emt 0:00:27]} Kf8 {[%emt 0:00:01]} 38. Qh6+ {[%emt 0:00:11]} 1-0

[Event "GER-ch Rapid Women 2020"]
[Site "Plochingen"]
[Date "2020.09.20"]
[Round "9.6"]
[White "Birkholz, Olga"]
[Black "Stangl, Anita"]
[Result "1-0"]
[ECO "D00"]
[WhiteElo "2018"]
[BlackElo "2005"]
[Annotator "NA"]
[PlyCount "75"]
[EventDate "2020.09.19"]
[EventType "swiss"]
[EventCountry "GER"]
[SourceTitle "playchess.com"]
[Source "ChessBase"]
[SourceQuality "1"]
[TimeControl "900+10"]

1. d4 {[%emt 0:00:00]} e6 {[%emt 0:00:00]} 2. Nc3 {[%emt 0:00:00]} d5 {[%emt 0:00:00]} 3. Bf4 {[%emt 0:00:01]} c6 {[%emt 0:00:27]} 4. e3 {[%emt 0:00:04]} Nf6 {[%emt 0:00:04]} 5. Bd3 {[%emt 0:00:02]} Qb6 {[%emt 0:01:20]} 6. Rb1 {[%emt 0:00:55]} c5 {[%emt 0:00:50]} 7. dxc5 {[%emt 0:00:46]} Bxc5 {[%emt 0:00:49]} 8. Nb5 {[%emt 0:02:47]} Na6 {[%emt 0:00:26]} 9. c3 {[%emt 0:00:18]} O-O {[%emt 0:01:28]} 10. Nf3 {[%emt 0:01:51]} Be7 {[%emt 0:00:59]} 11. b4 {[%emt 0:00:24]} Bd7 {[%emt 0:00:34]} 12. a4 {[%emt 0:02:01]} Rfc8 {[%emt 0:01:04]} 13. O-O {[%emt 0:00:28]} Bxb5 {[%emt 0:00:29]} 14. axb5 {[%emt 0:00:22]} Nc7 {[%emt 0:00:02]} 15. Qe2 {[%emt 0:00:21]} Bd6 {[%emt 0:01:53]} 16. Ne5 {[%emt 0:03:41]} Nce8 {[%emt 0:00:19]} 17. c4 {[%emt 0:01:20]} Qc7 {[%emt 0:00:39]} 18. Qb2 {[%emt 0:02:01]} dxc4 {[%emt 0:00:14]} 19. Nxc4 {[%emt 0:00:07]} Bxf4 {[%emt 0:00:08]} 20. exf4 {[%emt 0:00:08]} Qxf4 {[%emt 0:00:08]} 21. b6 {[%emt 0:00:24]} Rxc4 {[%emt 0:00:57]} 22. Bxc4 {[%emt 0:00:02]} Qxc4 {[%emt 0:00:00]} 23. bxa7 {[%emt 0:00:02]} Rxa7 {[%emt 0:00:31]} 24. Rbc1 {[%emt 0:00:13]} Qb5 {[%emt 0:00:03]} 25. Rc8 {[%emt 0:00:11]} Ra4 {[%emt 0:00:19]} 26. Rb1 {[%emt 0:00:11]} h6 {[%emt 0:00:53]} 27. h3 {[%emt 0:00:01]} Kh7 {[%emt 0:00:14]} 28. Rc5 {[%emt 0:00:16]} Qb6 {[%emt 0:00:05]} 29. Qc2+ {[%emt 0:00:01]} g6 {[%emt 0:00:08]} 30. Qxa4 {[%emt 0:00:01]} Nd6 {[%emt 0:00:14]} 31. Qa5 {[%emt 0:00:10]} Qxa5 {[%emt 0:00:22]} 32. bxa5 {[%emt 0:00:01]} Nfe4 {[%emt 0:00:01]} 33. Rc7 {[%emt 0:00:03]} Nd2 {[%emt 0:00:01]} 34. Rb2 {[%emt 0:00:03]} N2e4 {[%emt 0:00:25]} 35. f3 {[%emt 0:00:09]} Ng3 {[%emt 0:00:14]} 36. Kf2 {[%emt 0:00:06]} Ngf5 {[%emt 0:00:03]} 37. Rd7 {[%emt 0:00:14]} Kg7 {[%emt 0:00:20]} 38. g4 {[%emt 0:00:04]} 1-0